[Event "11th Festival Palmanova-A 2022"]
[Site "Strassoldo"]
[Date "2022.12.09"]
[Round "2.2"]
[White "Zuttioni, Federico"]
[Black "Lekic, Dusan"]
[Result "0-1"]
[ECO "C54"]
[WhiteElo "2165"]
[BlackElo "2329"]
[Annotator "TA"]
[PlyCount "106"]
[EventDate "2022.12.08"]
[EventType "swiss"]
[EventCountry "ITA"]
[SourceTitle "playchess.com"]
[Source "ChessBase"]
[SourceQuality "1"]
[TimeControl "5400+30"]

{[%evp 13,106,39,44,22,30,25,33,33,37,14,16,0,0,0,-16,-97,-85,-100,-104,-112,-107,-113,-107,-102,-108,-100,-108,-126,-117,-152,-145,-182,-112,-164,-157,-141,-125,-148,-141,-141,-60,-58,0,0,0,-38,0,0,0,-14,0,-100,-100,-130,-130,-129,-128,-128,-128,-160,-148,-272,-283,-275,-266,-591,-581,-583,-581,-704,-527,-668,-681,-672,-653,-728,-588,-727,-682,-801,-756,-986,-938,-788,-736,-710,-703,-2097,-2048,-6025,-5047,-5143,-5105,-29985,-29987]} 1. e4 {[%emt 0:00:05]} e5 {[%emt 0:00:23]} 2. Nf3 {[%emt 0:00:14]} Nc6 {[%emt 0:00:10]} 3. Bc4 {[%emt 0:00:17]} Bc5 {[%emt 0:00:41]} 4. c3 {[%emt 0:00:24]} Nf6 {[%emt 0:00:30]} 5. d3 {[%emt 0:00:22]} O-O {[%emt 0:00:47]} 6. O-O {[%emt 0:00:37]} d5 {[%emt 0:00:47]} 7. exd5 {[%emt 0:00:17]} Nxd5 {[%emt 0:00:09]} 8. a4 {[%emt 0:00:32] C54: Giuoco Piano: 4 c3 Nf6, main lines with 5 d4 and 5 d3.} a5 {[%emt 0:01:23]} 9. Nbd2 {[%emt 0:01:19]} Nb6 {[%emt 0:09:32]} 10. Bb5 $1 {[%emt 0:00:59] White is slightly better.} Bg4 {[%emt 0:01:12][%cal Bc8g4,Bg4h5,Bh5g6,Bg6d3,Bd3b5][%mdl 32]} 11. h3 {[%emt 0:06:14]} Bh5 {[%emt 0:00:09] [#]} 12. g4 $146 {[%emt 0:20:18]} ({Predecessor:} 12. Ne4 Bd6 13. Re1 Na7 14. d4 Nxb5 15. axb5 exd4 16. Nxd6 Bxf3 17. Qxf3 Qxd6 18. Bf4 {½-½ (43) Kramnik,V (2812)-Aronian,L (2792) Paris 2016}) 12... Bg6 $36 {[%emt 0:00:32][%mdl 2048] Black has some pressure.} 13. Bxc6 {[%emt 0:00:25]} bxc6 {[%emt 0:00:43]} 14. d4 {[%emt 0:05:55]} (14. Nxe5 $11 Bxd3 15. Nxd3 Qxd3 16. Qf3 Qxf3 17. Nxf3) 14... exd4 $17 {[%emt 0:02:06] Black is more active.} 15. Nb3 {[%emt 0:00:11][%csl LRc5,LRd4]} Bd6 {[%emt 0:10:07]} 16. Nbxd4 {[%emt 0:00:56]} c5 {[%emt 0:03:25]} 17. Nb5 {[%emt 0:05:51] [#]} Bd3 $1 {[%emt 0:03:08][%mdl 512]} 18. Re1 {[%emt 0:00:17]} (18. Qxd3 $2 {loses.} Bh2+ $1 {[%mdl 512]} 19. Nxh2 Qxd3 $19) 18... Bxb5 $1 {[%emt 0:02:35]} 19. axb5 {[%emt 0:00:09]} Qd7 {[%emt 0:00:08]} 20. Qc2 {[%emt 0:09:46]} f5 {[%emt 0:02:13]} 21. g5 {[%emt 0:09:37]} Qxb5 {[%emt 0:04:16]} 22. Bd2 {[%emt 0:12:51]} c4 {[%emt 0:02:53]} ({Black should play} 22... a4 $19 23. Bc1 Rfe8 24. Rxe8+ Rxe8) 23. Rad1 {[%emt 0:02:21]} (23. Be3 $17 {was worth a try.}) 23... f4 {[%emt 0:01:07]} 24. Bc1 {[%emt 0:06:47]} Rae8 {[%emt 0:02:01]} 25. Rxe8 {[%emt 0:01:20]} Qxe8 {[%emt 0:03:39]} ({Weaker is} 25... Rxe8 26. Kg2 $17) 26. Kg2 {[%emt 0:01:47]} Qh5 {[%emt 0:14:33]} (26... Qe6 $17 27. Re1 Qf7) 27. Qe4 $15 {[%emt 0:06:46]} Re8 {[%emt 0:07:56]} (27... Qf7 $15) 28. Qc6 $11 {[%emt 0:02:03] Strongly threatening Rxd6.} Rb8 {[%emt 0:05:21]} 29. Rd4 {[%emt 0:00:19]} Qe8 {[%emt 0:02:05]} 30. Qxe8+ {[%emt 0:03:36]} Rxe8 {[%emt 0:00:07]} 31. Kf1 {[%emt 0:00:31]} Rf8 {[%emt 0:02:59]} 32. Nd2 {[%emt 0:01:16] [#]} (32. h4 $11 {remains equal.}) 32... Kf7 $1 $17 {[%emt 0:02:21] White is on the road to losing.} 33. Nxc4 {[%emt 0:00:59]} Nxc4 {[%emt 0:00:11]} 34. Rxc4 {[%emt 0:00:05][%mdl 4096] Endgame [#] KRB-KRB} Kg6 $1 {[%emt 0:00:07]} 35. Ra4 {[%emt 0:01:39]} Rf5 {[%emt 0:00:14]} 36. Kg2 {[%emt 0:00:54]} Kxg5 {[%emt 0:00:30]} ({Inferior is} 36... Rxg5+ 37. Kf3 $17) 37. Re4 {[%emt 0:00:27]} (37. c4 $17 {was necessary.}) 37... Rd5 $19 {[%emt 0:01:19] Threatens to win with ...Rd1.} 38. Re1 {[%emt 0:00:33] Inhibits Rd1.} Kf5 {[%emt 0:00:43]} 39. b3 $2 {[%emt 0:00:30]} (39. Rh1 {is tougher.}) 39... Rd3 {[%emt 0:01:28]} 40. Bb2 {[%emt 0:00:24]} f3+ {[%emt 0:00:20]} 41. Kf1 {[%emt 0:00:10]} Rd2 {[%emt 0:00:44]} 42. Bc1 {[%emt 0:00:13]} Rc2 {[%emt 0:00:09]} 43. Be3 {[%emt 0:00:46]} Rxc3 {[%emt 0:01:00]} 44. Rb1 {[%emt 0:00:22]} g5 {[%emt 0:01:17]} 45. Ke1 {[%emt 0:00:47]} Rc2 {[%emt 0:01:25]} 46. Kd1 {[%emt 0:00:48]} Re2 {[%emt 0:00:14] aiming for ...Bb4.} 47. Rc1 {[%emt 0:00:30]} h5 {[%emt 0:00:42] ...g4 is the strong threat.} 48. Rc3 {[%emt 0:00:28]} g4 {[%emt 0:00:22]} 49. hxg4+ {[%emt 0:00:04]} hxg4 {[%emt 0:00:01] White must now prevent ...Be5.} 50. Rd3 {[%emt 0:00:27]} Be5 {[%emt 0:02:14] ( -> ...Ke4)} 51. Bc5 {[%emt 0:00:44]} Ke4 {[%emt 0:01:15]} 52. Rd8 {[%emt 0:00:12]} Rb2 {[%emt 0:01:06]} 53. Rg8 {[%emt 0:00:25]} Kd3 {[%emt 0:00:28] Weighted Error Value: White=0.42/Black=0.15 (very precise)} 0-1

[Event "11th Festival Palmanova-A 2022"]
[Site "Strassoldo"]
[Date "2022.12.09"]
[Round "2.3"]
[White "Gschiel, Alexander"]
[Black "Belli, Giorgio"]
[Result "0-1"]
[ECO "E02"]
[WhiteElo "2322"]
[BlackElo "2165"]
[Annotator "TA"]
[PlyCount "142"]
[EventDate "2022.12.08"]
[EventType "swiss"]
[EventCountry "ITA"]
[SourceTitle "playchess.com"]
[Source "ChessBase"]
[SourceQuality "1"]
[TimeControl "5400+30"]

{[%evp 17,142,37,41,17,12,0,0,-6,6,-4,0,-15,-22,-72,-34,-25,5,14,28,-6,-13,-6,-8,-37,-36,-45,-44,-52,-43,-45,-50,-45,-40,-48,0,-15,-9,-72,-71,-65,-56,-68,-64,-52,-66,-76,-59,-66,-37,-63,-43,-105,-51,-62,-11,-22,-4,-6,0,-56,0,-59,-2,-62,-62,-62,-63,-83,-83,-83,-75,-84,-83,-97,-83,-96,0,-140,-147,-121,-120,-270,-274,-405,-393,-394,-383,-367,-364,-488,-398,-736,-718,-645,-686,-1660,-1632,-29972,-29974,-29972,-29974,-29974,-29975,-29976,-29977,-29977,-29978,-29981,-29982,-29982,-29983,-29983,-29984,-29985,-29986,-29989,-29990,-29990,-29983,-29989,-29990,-29992,-29993,-29993,-29994,-29996,-29996]} 1. Nf3 {[%emt 0:00:02]} Nf6 {[%emt 0:15:16]} 2. c4 {[%emt 0:00:07]} e6 {[%emt 0:00:37]} 3. g3 {[%emt 0:00:12]} Be7 {[%emt 0:00:52]} 4. Bg2 {[%emt 0:00:10]} O-O {[%emt 0:00:08]} 5. O-O {[%emt 0:00:55]} d5 {[%emt 0:02:08]} 6. d4 {[%emt 0:00:56]} dxc4 {[%emt 0:00:14]} 7. Qa4 {[%emt 0:00:14]} Bd7 {[%emt 0:01:54]} 8. Qxc4 {[%emt 0:00:12]} Bc6 {[%emt 0:00:08]} 9. Nc3 {[%emt 0:00:54]} Nbd7 {[%emt 1:13:43]} 10. a3 {[%emt 0:06:30] E02: Open Catalan: 5 Qa4+.} Nd5 {[%emt 0:00:00]} 11. Re1 {[%emt 0:12:33]} Nxc3 {[%emt 0:00:00]} 12. bxc3 {[%emt 0:00:16] [#] The position is equal.} Nf6 $146 {[%emt 0:00:00] Prevents e4.} ({Predecessor:} 12... Be4 13. Nd2 Nb6 14. Qa2 Bxg2 15. Kxg2 c5 16. Nf3 Rc8 17. e4 Qc7 18. Bf4 Bd6 19. Bxd6 Qxd6 {0-1 (50) Czernek,T (2036)-Vyskocil,N (2325) Tatranska Lomnica 2017}) 13. Bf4 {[%emt 0:03:37]} Bd5 {[%emt 0:00:00]} 14. Qa4 {[%emt 0:04:42]} c5 {[%emt 0:00:00]} 15. Rab1 {[%emt 0:15:59]} (15. h4 $11) 15... Bc6 {[%emt 0:00:00]} 16. Qb3 {[%emt 0:00:39]} Bd5 {[%emt 0:00:00]} 17. c4 {[%emt 0:11:08]} Be4 {[%emt 0:00:00][%csl LRb1,LRd4]} 18. Rbd1 {[%emt 0:00:07]} (18. Ne5 {is interesting.} Bxb1 19. Rxb1 Nh5 20. Qxb7 Rb8 21. Nc6) 18... Qb6 {[%emt 0:00:00]} 19. Qxb6 {[%emt 0:05:19]} axb6 {[%emt 0:00:00]} 20. Bc7 {[%emt 0:00:11]} Ra6 {[%emt 0:00:00]} 21. dxc5 {[%emt 0:06:11]} bxc5 {[%emt 0:00:00]} ({But not} 21... Rxa3 22. cxb6 Ra2 23. Bd6 Bxd6 24. Rxd6 $16) 22. Nd2 {[%emt 0:03:10]} Bxg2 {[%emt 0:00:00]} 23. Kxg2 {[%emt 0:00:01]} Rc8 {[%emt 0:00:00]} 24. Be5 {[%emt 0:00:53]} Nd7 {[%emt 0:00:00]} 25. Bc3 {[%emt 0:03:49]} Bf6 {[%emt 0:00:00]} (25... Rxa3 $2 26. Nb1 Rxc3 27. Rxd7 (27. Nxc3 Ne5 $16) 27... Rxc4 28. Rxe7 $18) 26. Bxf6 {[%emt 0:02:04]} Nxf6 {[%emt 0:00:00]} 27. Nb3 {[%emt 0:00:10]} (27. e4 $11 {remains equal.}) 27... g6 {[%emt 0:00:00]} ({Of course not} 27... Rxa3 28. Nxc5 $1 g6 29. Nxb7 $11) 28. Ra1 {[%emt 0:01:17]} Ra4 {[%emt 0:00:00]} 29. Red1 {[%emt 0:02:51]} Rxc4 {[%emt 0:00:00]} 30. Na5 $1 {[%emt 0:00:06][%csl LRb7,LRc4]} Rc2 {[%emt 0:00:00]} 31. Nxb7 {[%emt 0:00:05]} Rxe2 {[%emt 0:00:00]} 32. a4 {[%emt 0:00:38]} Rb2 {[%emt 0:00:00] Prevents a5.} (32... Ne4 $5 {[%cal Re2f2]} 33. Kf3 Rb2 34. Kxe4 Rxb7 $17) 33. Nd6 {[%emt 0:01:21]} Rd8 {[%emt 0:00:00] ...Ng4 is the strong threat.} (33... Ra8 $5 {[%cal Rf6g4]} 34. Rdc1 Ra6 $15) 34. a5 {[%emt 0:02:23]} (34. Ne4 $15 Rxd1 35. Nxf6+ Kg7 36. Nh5+ gxh5 37. Rxd1) 34... Nd5 {[%emt 0:00:00]} (34... Ng4 $17 {Strongly threatening ...Ne3+.} 35. Kf1 Nxh2+ 36. Kg1 Nf3+ 37. Kg2 Nd4) 35. Nc4 $15 {[%emt 0:01:47]} Rc2 {[%emt 0:00:00] Black is more active.} (35... Rb7 $15) 36. Rdc1 $11 {[%emt 0:00:55]} Rxc1 {[%emt 0:00:00]} 37. Rxc1 {[%emt 0:00:00][%mdl 4096] Endgame KRN-KRN} Ra8 {[%emt 0:00:00]} 38. Ra1 {[%emt 0:00:53]} (38. Rb1 $11) 38... Ra6 {[%emt 0:00:00]} (38... Ra7 $15) 39. Ne5 {[%emt 0:01:21]} (39. Rb1 $1 $11) 39... Nb4 {[%emt 0:00:00]} (39... f6 $15 40. Nc4 Kf7) 40. Nd7 {[%emt 0:02:54]} (40. Rd1 $11) 40... Nc6 $15 {[%emt 0:00:00]} 41. Nxc5 {[%emt 0:00:07]} Rxa5 {[%emt 0:00:00]} 42. Rc1 {[%emt 0:00:03][%cal Oc5e6]} Ne5 {[%emt 0:00:00]} 43. Ne4 {[%emt 0:02:07]} Ra4 {[%emt 0:00:00]} 44. Nd6 {[%emt 0:01:30]} Ra2 {[%emt 0:00:27][%cal Oa2f2]} 45. Rc8+ {[%emt 0:00:24]} Kg7 {[%emt 0:00:05]} 46. Ne8+ {[%emt 0:00:40]} Kf8 {[%emt 0:00:43]} ({Better is} 46... Kh6 $17 {Hoping for ...Ng4.} 47. Nd6 g5) 47. Nd6+ {[%emt 0:01:25]} (47. Nf6+ $11 Kg7 48. Ne8+ Kh6 49. Nd6) 47... Ke7 $17 {[%emt 0:01:01]} 48. Ne4 {[%emt 0:00:00]} f5 {[%emt 0:01:11]} 49. Ng5 {[%emt 0:01:37] [#] This costs White the game.} (49. Nc3 $17 Rd2 50. Kf1) 49... h6 $1 $19 {[%emt 0:01:28]} 50. Nh3 {[%emt 0:01:08]} (50. Nf3 $142 Nd3 51. Nd4) 50... g5 {[%emt 0:00:50]} 51. Rc3 {[%emt 0:00:48]} Ng4 {[%emt 0:01:19]} 52. Kg1 {[%emt 0:01:04]} e5 {[%emt 0:00:44] aiming for ...e4.} 53. Rb3 {[%emt 0:00:16]} e4 {[%emt 0:00:58][%cal Oe4e3] White must now prevent ...e3!} 54. Rb5 $2 {[%emt 0:00:43]} (54. Rb6) 54... e3 {[%emt 0:01:33]} 55. fxe3 {[%emt 0:01:58]} Rxh2 {[%emt 0:00:54]} 56. Nxg5 {[%emt 0:02:07]} hxg5 {[%emt 0:00:05]} 57. Rxf5 {[%emt 0:00:05] [#] KRN-KR} Rg2+ $3 {[%emt 0:01:10][%mdl 512] Black mates.} 58. Kh1 {[%emt 0:01:32]} Rxg3 {[%emt 0:00:08]} 59. e4 {[%emt 0:00:01]} Ke6 {[%emt 0:00:59]} 60. Ra5 {[%emt 0:00:09]} Nf2+ {[%emt 0:00:26]} 61. Kh2 {[%emt 0:00:04]} Nxe4 {[%emt 0:00:20]} 62. Ra6+ {[%emt 0:00:18]} Kf5 {[%emt 0:00:18]} 63. Ra5+ {[%emt 0:00:18]} Kf4 {[%emt 0:00:16]} 64. Ra8 {[%emt 0:00:02]} Re3 {[%emt 0:00:16]} 65. Rf8+ {[%emt 0:00:05]} Kg4 {[%emt 0:00:06]} 66. Ra8 {[%emt 0:00:30]} Re2+ {[%emt 0:00:19]} 67. Kg1 {[%emt 0:00:01]} Kf3 {[%emt 0:00:14]} 68. Ra3+ {[%emt 0:00:33]} Re3 {[%emt 0:00:05]} 69. Ra8 {[%emt 0:00:04]} Kg3 {[%emt 0:00:12][%cal Re3e1]} 70. Ra1 {[%emt 0:00:04]} Nd2 {[%emt 0:00:14]} 71. Kh1 {[%emt 0:00:45]} Nf3 {[%emt 0:00:14] Weighted Error Value: White=0.50/Black=0.11 (very precise)} 0-1

[Event "11th Festival Palmanova-A 2022"]
[Site "Strassoldo"]
[Date "2022.12.09"]
[Round "2.4"]
[White "Savanovic, Maksim"]
[Black "Neuschmied, Siegfried"]
[Result "1-0"]
[ECO "A41"]
[WhiteElo "2154"]
[BlackElo "2244"]
[Annotator "TA"]
[PlyCount "97"]
[EventDate "2022.12.08"]
[EventType "swiss"]
[EventCountry "ITA"]
[SourceTitle "playchess.com"]
[Source "ChessBase"]
[SourceQuality "1"]
[TimeControl "5400+30"]

{[%evp 10,97,8,-5,0,0,0,0,2,8,14,10,12,12,24,-11,-8,-10,25,0,5,-46,-47,-32,-28,-34,-38,-216,-198,-208,-187,-294,-276,-268,-264,-269,-240,-286,-297,-275,-249,-260,-171,-178,-118,-122,-120,-118,0,-5,0,0,135,0,109,-5,0,0,0,0,0,0,471,454,1314,707,671,688,764,764,764,0,0,0,0,-29967,29967,0,0,0,0,0,331,331,29991,579,29988,29989,29993,664]} 1. d4 {[%emt 0:01:13]} g6 {[%emt 0:00:11]} 2. Bf4 {[%emt 0:01:26]} Bg7 {[%emt 0:00:15]} 3. Nf3 {[%emt 0:00:05]} d6 {[%emt 0:00:20]} 4. e3 {[%emt 0:00:30]} Nd7 {[%emt 0:00:06]} 5. h3 {[%emt 0:00:19]} e5 {[%emt 0:00:14]} 6. Bh2 {[%emt 0:00:13]} Nh6 {[%emt 0:00:20] A41: 1 d4 d6: Tartakower System and Modern Defence.} 7. Be2 {[%emt 0:04:44]} O-O {[%emt 0:00:10]} 8. O-O {[%emt 0:00:01]} f5 {[%emt 0:00:27] The position is equal.} 9. c4 {[%emt 0:04:13]} Qe7 {[%emt 0:00:27]} 10. Nc3 {[%emt 0:01:24]} c6 {[%emt 0:00:21] Against Nd5} 11. b4 {[%emt 0:03:02]} Nf7 {[%emt 0:13:26]} 12. c5 {[%emt 0:35:36]} dxc5 {[%emt 0:16:38]} 13. dxc5 {[%emt 0:00:45]} g5 {[%emt 0:03:26]} 14. Qb3 {[%emt 0:06:06] [#]} h5 $146 {[%emt 0:02:40]} ({Predecessor:} 14... Kh8 15. Rad1 h5 16. Bc4 g4 17. hxg4 hxg4 18. Nh4 Qxh4 19. Bxf7 Qe7 20. Bc4 a5 {0-1 (30) Lenz,J (2305)-Szenetra,W (2240) Baden-Baden 1990}) 15. h4 {[%emt 0:07:01]} (15. Nd2 $11) 15... gxh4 $15 {[%emt 0:08:06]} 16. Rad1 {[%emt 0:02:01]} Kh8 {[%emt 0:02:07]} 17. Bc4 {[%emt 0:04:29]} e4 {[%emt 0:07:26]} 18. Nxh4 {[%emt 0:14:34]} Qxh4 $19 {[%emt 0:01:26]} 19. Bxf7 {[%emt 0:00:03]} Qf6 $1 {[%emt 0:02:02][%csl LRc3,LRf7]} 20. Be6 {[%emt 0:02:03]} (20. Nb5 {was called for.} cxb5 21. Bxh5) 20... Nxc5 {[%emt 0:01:11]} 21. bxc5 {[%emt 0:00:18] Black must now prevent Bxc8.} Bxe6 {[%emt 0:03:34]} (21... Qxe6 22. Ne2 $15) 22. Qxb7 {[%emt 0:00:29]} Qxc3 {[%emt 0:01:30]} 23. Qxc6 {[%emt 0:00:34]} Bxa2 {[%emt 0:04:29]} 24. Qg6 {[%emt 0:02:30]} Qf6 {[%emt 0:01:20] Against Bd6} (24... Qxc5 25. Bd6 (25. Rd7 $2 Qc3 $19) 25... Qb5 26. Bxf8 Rxf8 27. Qxh5+ Kg8 28. Rd2 $17) 25. Qxh5+ {[%emt 0:00:12]} Qh6 {[%emt 0:00:03]} 26. Qe2 {[%emt 0:00:30]} Bf7 {[%emt 0:00:22]} (26... Be6 $19 {Hoping for ...a5.} 27. Bf4 Qf6) 27. Rd6 $17 {[%emt 0:01:34] Inhibits a5.} Qh5 {[%emt 0:00:15]} 28. Qa6 {[%emt 0:00:30]} Rg8 {[%emt 0:04:08]} ({Black should play} 28... f4 $17 {Strongly threatening ...f3.} 29. Bxf4 Qxc5) 29. c6 $11 {[%emt 0:04:51]} Kh7 {[%emt 0:19:17] And now ...Bh6 would win.} (29... Bf8 {looks sharper.} 30. Rd7 Qg6 31. Be5+ Bg7) 30. c7 {[%emt 0:00:54]} Rh8 {[%emt 0:00:05]} (30... Bh6 $11) 31. f3 {[%emt 0:03:50]} (31. Rc1 $16 Rhc8 32. Rd7) 31... Bh6 {[%emt 0:05:06] Prevents c8Q.} (31... Rac8 $1 $11 {remains equal.} 32. Rd7 Rhe8) 32. f4 {[%emt 0:00:30] White is more active.} ({White must play} 32. fxe4 $1 $16 Bxe3+ 33. Kh1) 32... Rag8 {[%emt 0:03:30]} 33. Rf2 {[%emt 0:00:30]} Bf8 {[%emt 0:01:18]} 34. c8=Q {[%emt 0:00:00]} Bxd6 {[%emt 0:00:02] A strong pair of Bishops.} 35. Qd7 {[%emt 0:00:23]} Kg7 $2 {[%emt 0:00:32][%mdl 8192]} (35... Rd8 $11 36. Qaxd6 Rxd7 37. Qxd7 Rg8) 36. g4 $18 {[%emt 0:00:29]} fxg4 {[%emt 0:01:06]} (36... Kh7 $142) 37. Qdxd6 {[%emt 0:00:18]} g3 {[%emt 0:00:05]} 38. Rg2 {[%emt 0:01:20]} (38. Bxg3 $2 Qh1#) 38... Kh7 {[%emt 0:00:18]} 39. Bxg3 {[%emt 0:00:00] White wants to mate with f5.} Rg6 {[%emt 0:00:17] Against f5} 40. Rh2 $2 {[%emt 0:00:28]} Rxg3+ $11 {[%emt 0:00:23]} 41. Kh1 {[%emt 0:00:30] Chess con chili.} Rh3 {[%emt 0:00:01]} 42. Qd2 {[%emt 0:00:30][%mdl 8192] [#]} (42. Qe2 $11 Qxe2 43. Rxh3+ Bh5 44. Qe7+ Kg6 45. Qe6+ Kh7 46. Qe7+ (46. Qxe4+ Kg8 $11) 46... Kg8 47. Qd8+ Kf7 48. Qd5+ Kg7 49. Qd4+ (49. Qxe4 Bf3+) (49. Qe5+ Kg8 $11) 49... Kh7 50. Qd7+ Kh6 51. Qe6+ Kh7 52. Qe7+ (52. Qxe4+ Kg8 $11)) 42... Be6 $4 {[%emt 0:01:57][%mdl 8192]} 43. Rxh3 $2 {[%emt 0:00:28]} (43. Qxe6 {mates} Rxh2+ 44. Qxh2 Kg7 45. Qe7+ Kg8 46. Qxh5 Rxh5+ 47. Kg2 Rf5 48. Qxe4) 43... Bxh3 {[%emt 0:00:04]} 44. Qae2 $1 $40 {[%emt 0:00:32][%mdl 128] White has some attack.} (44. Qxa7+ Kg6) 44... Qh4 {[%emt 0:00:51]} 45. Qf2 {[%emt 0:00:28]} Qg4 {[%emt 0:00:36][%mdl 8192] [#]} (45... Qh5 $11 {and Black is okay.} 46. Qfe2 Bg2+ 47. Kg1 (47. Kxg2 {gets mated.} Rg8+) 47... Qh1+ 48. Kf2 Qh4+ 49. Kg1 (49. Kxg2 Rg8+) 49... Qh1+ 50. Kf2 Qh4+ 51. Kg1 (51. Kxg2 Rg8+) 51... Qh1+) 46. Qde2 $1 $18 {[%emt 0:00:30]} Qg7 {[%emt 0:00:28]} (46... Qxe2 $18 47. Qxe2 Bf5) 47. Qh4+ {[%emt 0:00:31]} (47. Qh5+ $142 Kg8 48. Qa2+ Kf8 49. Qa3+ Kg8 50. Qb3+ Kf8 51. Qb4+ Qe7 52. Qb8+ Bc8 53. Qxc8+ Qe8 54. Qcxe8+ Kg7 55. Qhxh8#) 47... Kg8 {[%emt 0:00:06]} 48. Qc4+ {[%emt 0:00:10]} Qf7 {[%emt 0:00:37]} 49. Qxf7+ {[%emt 0:00:05] White used his chance.   Weighted Error Value: White=0.61/Black=0.87} (49. Qxe4 {is a self mate.} Rxh4 50. Qa8+ Kg7 51. Qc6 Bd7+ 52. Kg2 Bxc6+ 53. Kg3 Rh1 54. e4 Qg6+ 55. Kf3 Qxe4+ 56. Kg4 Qg6#) (49. Qd8+ $142 Kg7 50. Qcd4+ (50. Qxe4 Rxd8 51. Kh2 Bf5 52. Qg2+ Kf8 53. e4 Qh5+ 54. Kg1 Qh4 55. Qc2 Qg3+ 56. Kf1 Bh3+ 57. Ke2 Qg2+ 58. Ke3 Qxc2 59. f5 Qd2+ 60. Kf3 Rd3#) 50... Kg6 51. Q4xh8 Bg2+ 52. Kg1 Qxf4 53. Qdg8+ Kf5 54. Qf7+ Kg5 55. Qhh5#) 1-0

[Event "11th Festival Palmanova-A 2022"]
[Site "Strassoldo"]
[Date "2022.12.09"]
[Round "2.5"]
[White "Loiacono, Leonardo"]
[Black "Perossa, Nicolas"]
[Result "1-0"]
[ECO "E73"]
[WhiteElo "2271"]
[BlackElo "2195"]
[Annotator "TA"]
[PlyCount "65"]
[EventDate "2022.12.08"]
[EventType "swiss"]
[EventCountry "ITA"]
[SourceTitle "playchess.com"]
[Source "ChessBase"]
[SourceQuality "1"]
[TimeControl "5400+30"]

{[%evp 14,65,58,51,69,63,83,47,95,72,74,65,91,61,80,53,84,58,117,101,140,108,121,69,79,71,106,97,149,142,155,147,201,116,171,168,377,414,539,151,327,314,499,469,457,448,666,680,1262,1125,1950,1642,29992,5181]} 1. d4 {[%emt 0:00:03]} Nf6 {[%emt 0:00:09]} 2. c4 {[%emt 0:00:04]} g6 {[%emt 0:00:11]} 3. Nc3 {[%emt 0:00:04]} Bg7 {[%emt 0:00:16]} 4. e4 {[%emt 0:00:07]} d6 {[%emt 0:00:06]} 5. Be2 {[%emt 0:00:04]} O-O {[%emt 0:00:11]} 6. Be3 {[%emt 0:00:04]} e5 {[%emt 0:02:24]} 7. d5 {[%emt 0:00:05]} a5 {[%emt 0:00:08]} 8. g4 {[%emt 0:00:06]} Na6 {[%emt 0:00:05] E73: King's Indian: Averbakh Variation without 6...c5.} 9. h4 {[%emt 0:00:08]} Nd7 {[%emt 0:00:06]} 10. g5 {[%emt 0:34:52]} f5 {[%emt 0:08:49] [#]} (10... c6 $14 {was preferrable.}) 11. gxf6 $1 $16 {[%emt 0:01:31]} Nxf6 {[%emt 0:00:35]} (11... Qxf6 $6 12. Qd2 $11) 12. h5 {[%emt 0:04:08]} Nc5 {[%emt 0:04:17]} 13. hxg6 {[%emt 0:00:35]} hxg6 {[%emt 0:04:20]} 14. Bf3 {[%emt 0:04:52]} Bd7 {[%emt 0:07:36]} 15. Qe2 {[%emt 0:13:19] [#]} (15. Qd2 {looks sharper.} Ng4 16. Bxc5 dxc5 17. O-O-O) 15... Qc8 $146 {[%emt 0:19:32]} (15... a4 $14) ({Predecessor:} 15... a4 16. Nh3 Nh7 17. O-O-O a3 18. b3 Qc8 19. Ng5 Nxg5 20. Bxg5 Rxf3 21. Qxf3 Bg4 {1-0 (32) Trachtmann,M (2273)-Carstens,A (2221) Wuerttemberg 2017}) 16. O-O-O {[%emt 0:00:10]} Na4 {[%emt 0:06:05]} 17. Nxa4 {[%emt 0:15:53]} Bxa4 {[%emt 0:00:09]} 18. Rf1 {[%emt 0:00:20]} ({White should try} 18. Rd2 $16) 18... Bd7 $14 {[%emt 0:00:32]} 19. Kb1 {[%emt 0:03:46]} c6 {[%emt 0:05:54]} 20. Rc1 {[%emt 0:00:19]} c5 {[%emt 0:04:05]} ({Better is} 20... a4) 21. Qd2 {[%emt 0:05:02]} Rb8 {[%emt 0:12:40]} 22. Ne2 {[%emt 0:03:35] White is more active.} (22. Qxa5 $6 b5 23. Qd2 bxc4 $14) 22... b5 {[%emt 0:08:01]} (22... Ng4 $16 23. Bxg4 Bxg4) 23. cxb5 {[%emt 0:05:04]} (23. Qxa5 $2 b4 24. Rhg1 Ne8 $19) (23. Rcg1 $18 {Strongly threatening Bh6.} Ne8 24. Bg2) 23... Rxb5 {[%emt 0:00:03]} (23... Bxb5 $16 {might work better.} 24. Rcg1 (24. Qxa5 $2 Nxd5 25. Qd2 Nb4 $19) 24... Be8) 24. Bh6 $18 {[%emt 0:01:35] [#] And now Rcg1 would win.} Bg4 $2 {[%emt 0:01:15]} (24... Rb7) 25. Bxg7 {[%emt 0:00:59]} Bxf3 {[%emt 0:00:35]} 26. Bxf8 $2 {[%emt 0:03:27]} (26. Bxf6 $18 {has better winning chances.} Rxb2+ 27. Kxb2 Bxh1 28. Rxh1 Rxf6 29. Qh6 Qb7+ 30. Ka1) 26... Bxe4+ $2 {[%emt 0:01:43] A mistake that costs the game.} (26... Bxh1 $16 27. Rxh1 (27. Bxd6 Nxe4 28. Qe3 Qf5 $16) 27... Qxf8) 27. Ka1 {[%emt 0:00:04][%cal Oh1h8] Hoping for Rh8+!} Bxh1 {[%emt 0:00:16]} (27... Qxf8 $142 28. Rh4 Rb7) 28. Bxd6 {[%emt 0:00:48][%cal Bf8d6,Bd6e5,Be5f6][%mdl 32]} Be4 {[%emt 0:06:25]} 29. Bxe5 {[%emt 0:01:04]} Qf5 {[%emt 0:02:16]} (29... Rb6 $142 30. d6 (30. Qxa5 Nd7 $18) 30... Qe6) 30. f4 {[%emt 0:00:24] Threatens to win with Ng3.} Bf3 {[%emt 0:02:49]} 31. Ng3 {[%emt 0:01:02]} Qg4 {[%emt 0:00:38]} 32. Bxf6 {[%emt 0:00:26] Threatening mate with Qh2.} Qxg3 {[%emt 0:00:01]} 33. d6 {[%emt 0:00:24] Weighted Error Value: White=0.33/Black=1.02} (33. Qe3 $142 Kh7 34. Rh1+ (34. Rxc5 Rxc5 35. Qe7+ Kh6 $11) 34... Bxh1 35. Qxg3 Rb7 36. Qh4+ Kg8 37. Qh8+ Kf7 38. Qg7+ Ke8 39. Qg8+ Kd7 40. Qd8#) 1-0